fUST/lending_fUST_20260117
["ID","MTS","AMOUNT","RATE_DAILY","PERIOD"]
[402341192,1768661447830,-1000.0,0.00016438,2]
[402341194,1768661447839,-500.0,0.00016438,3]
[402341195,1768661447848,-500.0,0.00016438,3]
[402341197,1768661447857,-500.0,0.00016438,3]
[402341199,1768661447867,-500.0,0.00016438,3]
[402341201,1768661447876,-500.0,0.00016438,3]
[402341203,1768661447885,-500.0,0.00016438,3]
[402341205,1768661447894,-500.0,0.00016438,3]
[402341207,1768661447903,-500.0,0.00016438,3]
[402341208,1768661447912,-500.0,0.00016438,3]
[402341210,1768661447921,-1296.3,0.00016438,3]
[402341212,1768661447932,-500.0,0.00016438,3]
[402341214,1768661447945,-500.0,0.00016438,3]
[402341216,1768661447956,-500.0,0.00016438,3]
[402341218,1768661447967,-500.0,0.00016438,3]
[402341220,1768661447977,-500.0,0.00016438,3]
[402341222,1768661447987,-500.0,0.00016438,3]
[402341224,1768661447995,-500.0,0.00016438,3]
[402341226,1768661448004,-1576.93,0.00016438,3]
[402341228,1768661448013,-500.0,0.00016438,3]
[402341230,1768661448025,-500.0,0.00016438,2]
[402341231,1768661448034,-500.0,0.00016438,3]
[402341233,1768661448044,-500.0,0.00016438,3]
[402341235,1768661448053,-500.0,0.00016438,3]
[402341237,1768661448062,-500.0,0.00016438,3]
[402341239,1768661448072,-500.0,0.00016438,3]
[402341241,1768661448081,-500.0,0.00016438,2]
[402341243,1768661448090,-500.0,0.00016438,3]
[402341245,1768661448099,-500.0,0.00016438,3]
[402341247,1768661448108,-500.0,0.00016438,3]
[402341248,1768661448118,-500.0,0.00016438,3]
[402341250,1768661448128,-500.0,0.00016438,3]
[402341252,1768661448137,-613.24737358,0.00016438,3]
[402341254,1768661448146,-500.0,0.00016438,3]
[402341256,1768661448156,-1006.11,0.00016438,3]
[402341258,1768661448166,-325.21716664,0.00016438,3]
[402341260,1768661448175,-706.14,0.00016438,3]
[402341262,1768661448184,-500.0,0.00016438,2]
[402341264,1768661448194,-1121.76,0.00016438,3]
[402341265,1768661448203,-507.06,0.00016438,3]
[402341267,1768661448212,-1150.76,0.00016438,3]
[402341269,1768661448221,-500.0,0.00016438,3]
[402341271,1768661448230,-643.98345217,0.00016438,3]
[402341273,1768661448240,-500.0,0.00016438,3]
[402341275,1768661448249,-500.0,0.00016438,3]
[402341277,1768661448259,-500.0,0.00016438,3]
[402341279,1768661448269,-500.0,0.00016438,3]
[402341281,1768661448278,-567.58,0.00016438,3]
[402341282,1768661448288,-500.0,0.00016438,3]
[402341284,1768661448297,-1124.68,0.00016438,3]
[402341286,1768661448306,-500.0,0.00016438,3]
[402341288,1768661448315,-1039.3,0.00016438,3]
[402341290,1768661448328,-500.0,0.00016438,3]
[402341292,1768661448339,-1245.86,0.00016438,3]
[402341294,1768661448348,-500.0,0.00016438,3]
[402341296,1768661448359,-500.0,0.00016438,3]
[402341298,1768661448368,-500.0,0.00016438,3]
[402341300,1768661448377,-501.8453365,0.00016438,3]
[402341302,1768661448387,-500.0,0.00016438,3]
[402341304,1768661448395,-544.53494198,0.00016438,3]
[402341305,1768661448404,-500.0,0.00016438,3]
[402341307,1768661448413,-500.0,0.00016438,3]
[402341309,1768661448422,-500.0,0.00016438,3]
[402341311,1768661448432,-500.0,0.00016438,3]
[402341313,1768661448440,-899.3,0.00016438,3]
[402341315,1768661448449,-500.0,0.00016438,3]
[402341317,1768661448459,-548.56,0.00016438,3]
[402341318,1768661448468,-500.0,0.00016438,3]
[402341320,1768661448478,-500.0,0.00016438,3]
[402341322,1768661448487,-500.0,0.00016438,3]
[402341324,1768661448496,-500.0,0.00016438,3]
[402341326,1768661448505,-950.57,0.00016438,3]
[402341328,1768661448514,-500.0,0.00016438,3]
[402341330,1768661448523,-501.58858315,0.00016438,3]
[402341331,1768661448532,-500.0,0.00016438,3]
[402341332,1768661448541,-875.06,0.00016438,3]
[402341333,1768661448550,-500.0,0.00016438,3]
[402341334,1768661448559,-1443.97,0.00016438,3]
[402341335,1768661448568,-500.0,0.00016438,3]
[402341336,1768661448577,-1864.45,0.00016438,3]
[402341337,1768661448586,-500.0,0.00016438,3]
[402341338,1768661448595,-500.0,0.00016438,3]
[402341339,1768661448604,-500.0,0.00016438,3]
[402341340,1768661448613,-807.18,0.00016438,3]
[402341341,1768661448622,-500.0,0.00016438,3]
[402341342,1768661448631,-1290.77,0.00016438,3]
[402341343,1768661448640,-500.0,0.00016438,3]
[402341344,1768661448649,-500.0,0.00016438,3]
[402341345,1768661448658,-500.0,0.00016438,3]
[402341346,1768661448668,-500.0,0.00016438,3]
[402341347,1768661448677,-1873.13,0.00016438,3]
[402341348,1768661448686,-500.0,0.00016438,3]
[402341349,1768661448695,-500.0,0.00016438,3]
[402341350,1768661448707,-500.0,0.00016438,3]
[402341351,1768661448717,-500.0,0.00016438,3]
[402341352,1768661448726,-500.0,0.00016438,3]
[402341353,1768661448735,-469.18172049,0.00016438,3]
[402341354,1768661448744,-916.76,0.00016438,3]
[402341355,1768661448753,-500.0,0.00016438,3]
[402341356,1768661448762,-500.0,0.00016438,3]
[402341357,1768661448771,-614.31374356,0.00016438,3]
[402341358,1768661448780,-500.0,0.00016438,3]
[402341359,1768661448790,-507.22,0.00016438,3]
[402341360,1768661448799,-500.0,0.00016438,3]
[402341361,1768661448808,-500.0,0.00016438,3]
[402341362,1768661448817,-500.0,0.00016438,3]
[402341363,1768661448826,-500.0,0.00016438,3]
[402341364,1768661448834,-821.87,0.00016438,3]
[402341365,1768661448843,-987.45,0.00016438,3]
[402341366,1768661448852,-509.99937096,0.00016438,3]
[402341367,1768661448861,-500.0,0.00016438,3]
[402341368,1768661448870,-711.39,0.00016438,3]
[402341369,1768661448879,-789.58,0.00016438,3]
[402341370,1768661448887,-225.94247433,0.00016438,3]
[402341371,1768661448896,-1022.81,0.00016438,3]
[402341372,1768661448905,-1195.09,0.00016438,3]
[402341373,1768661448914,-500.0,0.00016438,3]
[402341374,1768661448923,-1009.98,0.00016438,3]
[402341375,1768661448932,-672.16,0.00016438,3]
[402341376,1768661448941,-500.0,0.00016438,3]
[402341377,1768661448950,-504.02216576,0.00016438,3]
[402341378,1768661448959,-500.0,0.00016438,3]
[402341379,1768661448969,-877.48,0.00016438,3]
[402341380,1768661448978,-642.32,0.00016438,3]
[402341381,1768661448987,-2039.69,0.00016438,3]
[402341382,1768661448996,-508.58,0.00016438,3]
[402341383,1768661449006,-567.29,0.00016438,3]
[402341384,1768661449015,-500.0,0.00016438,3]
[402341385,1768661449023,-500.0,0.00016438,3]
[402341386,1768661449032,-500.0,0.00016438,3]
[402341387,1768661449041,-478.32257424,0.00016438,3]
[402341388,1768661449050,-1802.92,0.00016438,3]
[402341389,1768661449060,-500.0,0.00016438,3]
[402341390,1768661449070,-500.0,0.00016438,3]
[402341391,1768661449079,-500.0,0.00016438,3]
[402341392,1768661449088,-659.62,0.00016438,3]
[402341393,1768661449097,-500.0,0.00016438,3]
[402341394,1768661449105,-1777.6,0.00016438,3]
[402341395,1768661449114,-830.09,0.00016438,3]
[402341396,1768661449124,-500.0,0.00016438,3]
[402341397,1768661449133,-500.0,0.00016438,3]
[402341398,1768661449142,-500.0,0.00016438,3]
[402341400,1768661449151,-582.36,0.00016438,3]
[402341401,1768661449159,-887.42,0.00016438,3]
[402341402,1768661449169,-500.0,0.00016438,3]
[402341404,1768661449178,-500.0,0.00016438,3]
[402341405,1768661449187,-500.0,0.00016438,3]
[402341406,1768661449196,-500.0,0.00016438,3]
[402341408,1768661449205,-1000.0,0.00016438,2]
[402341409,1768661449215,-2401.87,0.00016438,3]
[402341410,1768661449223,-500.0,0.00016438,3]
[402341412,1768661449233,-1051.13,0.00016438,3]
[402341414,1768661449242,-500.0,0.00016438,3]
[402341416,1768661449251,-500.0,0.00016438,3]
[402341418,1768661449261,-775.93,0.00016438,3]
[402341420,1768661449270,-500.0,0.00016438,3]
[402341422,1768661449280,-500.0,0.00016438,3]
[402341424,1768661449288,-1463.58,0.00016438,3]
[402341426,1768661449298,-500.0,0.00016438,3]
[402341428,1768661449308,-500.0,0.00016438,3]
[402341430,1768661449317,-511.21,0.00016438,3]
[402341432,1768661449326,-500.0,0.00016438,3]
[402341434,1768661449335,-833.11,0.00016438,3]
[402341436,1768661449344,-1523.15,0.00016438,3]
[402341438,1768661449353,-534.98,0.00016438,3]
[402341440,1768661449361,-593.18,0.00016438,3]
[402341442,1768661449372,-500.0,0.00016438,3]
[402341444,1768661449381,-692.98,0.00016438,3]
[402341446,1768661449391,-500.0,0.00016438,3]
[402341448,1768661449403,-500.0,0.00016438,3]
[402341450,1768661449423,-500.0,0.00016438,3]
[402341452,1768661449437,-500.0,0.00016438,3]
[402341454,1768661449450,-500.0,0.00016438,3]
[402341456,1768661449459,-590.01,0.00016438,3]
[402341458,1768661449468,-500.0,0.00016438,3]
[402341460,1768661449476,-626.27,0.00016438,3]
[402341462,1768661449485,-500.0,0.00016438,3]
[402341464,1768661449495,-500.0,0.00016438,3]
[402341466,1768661449503,-1613.44,0.00016438,3]
[402341468,1768661449513,-500.0,0.00016438,3]
[402341470,1768661449525,-643.39,0.00016438,3]
[402341472,1768661449535,-500.0,0.00016438,3]
[402341474,1768661449545,-500.0,0.00016438,3]
[402341476,1768661449555,-500.0,0.00016438,3]
[402341478,1768661449566,-1020.04,0.00016438,3]
[402341480,1768661449575,-545.13592779,0.00016438,3]
[402341482,1768661449584,-500.0,0.00016438,3]
[402341484,1768661449594,-424.34553456,0.00016438,3]
[402341486,1768661449603,-500.0,0.00016438,3]
[402341488,1768661449613,-151.0,0.00016438,2]
[402341490,1768661449623,-500.0,0.00016438,3]
[402341492,1768661449633,-500.0,0.00016438,3]
[402341494,1768661449642,-500.0,0.00016438,3]
[402341496,1768661449651,-500.0,0.00016438,3]
[402341498,1768661449660,-500.0,0.00016438,3]
[402341500,1768661449670,-500.0,0.00016438,3]
[402341502,1768661449679,-500.0,0.00016438,3]
[402341504,1768661449688,-1460.86,0.00016438,3]
[402341506,1768661449697,-2617.38,0.00016438,3]
[402341508,1768661449712,-1046.32,0.00016438,3]
[402341510,1768661449722,-500.0,0.00016438,3]
[402341512,1768661449731,-500.0,0.00016438,3]
[402341514,1768661449740,-1516.4,0.00016438,3]
[402341516,1768661449750,-500.0,0.00016438,3]
[402341518,1768661449759,-500.0,0.00016438,3]
[402341520,1768661449769,-500.0,0.00016438,3]
[402341522,1768661449781,-1783.62,0.00016438,3]
[402341524,1768661449790,-500.0,0.00016438,3]
[402341526,1768661449800,-500.0,0.00016438,3]
[402341528,1768661449809,-1037.02,0.00016438,3]
[402341530,1768661449818,-794.97,0.00016438,3]
[402341532,1768661449828,-500.0,0.00016438,3]
[402341534,1768661449837,-500.0,0.00016438,3]
[402341536,1768661449847,-523.99827377,0.00016438,3]
[402341538,1768661449857,-1082.97,0.00016438,3]
[402341540,1768661449866,-211.62283602,0.00016438,3]
[402341542,1768661449875,-970.02,0.00016438,3]
[402341544,1768661449885,-598.07,0.00016438,3]
[402341546,1768661449894,-500.0,0.00016438,3]
[402341547,1768661449904,-500.0,0.00016438,3]
[402341549,1768661449914,-500.0,0.00016438,3]
[402341551,1768661449923,-500.0,0.00016438,3]
[402341553,1768661449932,-500.0,0.00016438,3]
[402341555,1768661449942,-1061.32,0.00016438,3]
[402341557,1768661449951,-500.0,0.00016438,3]
[402341559,1768661449961,-2043.5,0.00016438,3]
[402341561,1768661449970,-1025.82,0.00016438,3]
[402341563,1768661449980,-500.0,0.00016438,3]
[402341565,1768661449990,-551.15,0.00016438,3]
[402341567,1768661450000,-500.0,0.00016438,3]
[402341569,1768661450010,-500.0,0.00016438,3]
[402341571,1768661450019,-2020.94,0.00016438,3]
[402341572,1768661450028,-500.0,0.00016438,3]
[402341575,1768661450038,-464.68587701,0.00016438,3]
[402341576,1768661450047,-1407.02,0.00016438,3]
[402341578,1768661450057,-947.11,0.00016438,3]
[402341580,1768661450067,-500.0,0.00016438,3]
[402341582,1768661450076,-526.7,0.00016438,3]
[402341584,1768661450086,-500.0,0.00016438,3]
[402341586,1768661450095,-1314.5,0.00016438,3]
[402341588,1768661450105,-500.0,0.00016438,3]
[402341590,1768661450115,-500.0,0.00016438,3]
[402341592,1768661450124,-500.0,0.00016438,3]
[402341594,1768661450134,-500.0,0.00016438,3]
[402341596,1768661450143,-517.02,0.00016438,3]
[402341598,1768661450153,-479.17924292,0.00016438,2]
[402341600,1768661450162,-740.24,0.00016438,3]
[402341602,1768661450172,-1000.0,0.00016438,2]
[402341604,1768661450181,-789.24,0.00016438,3]
[402341606,1768661450191,-500.0,0.00016438,3]
[402341608,1768661450200,-596.93,0.00016438,3]
[402341610,1768661450210,-500.0,0.00016438,3]
[402341612,1768661450220,-500.0,0.00016438,3]
[402341614,1768661450230,-500.0,0.00016438,3]
[402341616,1768661450239,-501.47481174,0.00016438,3]
[402341618,1768661450249,-500.0,0.00016438,3]
[402341620,1768661450259,-500.0,0.00016438,3]
[402341622,1768661450269,-660.85,0.00016438,3]
[402341624,1768661450279,-500.0,0.00016438,3]
[402341626,1768661450289,-500.0,0.00016438,3]
[402341628,1768661450298,-500.0,0.00016438,3]
[402341630,1768661450307,-584.78,0.00016438,3]
[402341632,1768661450318,-500.0,0.00016438,3]
[402341634,1768661450327,-500.0,0.00016438,3]
[402341637,1768661450338,-500.0,0.00016438,3]
[402341639,1768661450347,-172.631544,0.00016438,3]
[402341640,1768661450357,-500.0,0.00016438,3]
[402341643,1768661450367,-1310.48,0.00016438,3]
[402341645,1768661450376,-551.9,0.00016438,3]
[402341647,1768661450387,-151.0,0.00016438,2]
[402341648,1768661450396,-500.0,0.00016438,3]
[402341650,1768661450406,-158.856128,0.00016438,3]
[402341652,1768661450415,-500.0,0.00016438,3]
[402341654,1768661450425,-500.0,0.00016438,3]
[402341656,1768661450434,-500.0,0.00016438,3]
[402341658,1768661450444,-500.0,0.00016438,3]
[402341660,1768661450454,-864.77,0.00016438,3]
[402341662,1768661450463,-500.0,0.00016438,3]
[402341664,1768661450473,-861.68,0.00016438,3]
[402341666,1768661450482,-536.72,0.00016438,3]
[402341668,1768661450492,-500.0,0.00016438,3]
[402341670,1768661450502,-500.0,0.00016438,3]
[402341672,1768661450511,-802.62,0.00016438,3]
[402341674,1768661450521,-500.0,0.00016438,3]
[402341676,1768661450530,-1746.05,0.00016438,3]
[402341678,1768661450539,-500.0,0.00016438,3]
[402341680,1768661450549,-500.0,0.00016438,3]
[402341682,1768661450558,-1553.75,0.00016438,3]
[402341684,1768661450567,-500.0,0.00016438,3]
[402341686,1768661450577,-500.0,0.00016438,3]
[402341689,1768661450587,-500.0,0.00016438,3]
[402341691,1768661450596,-500.0,0.00016438,3]
[402341693,1768661450606,-828.1,0.00016438,3]
[402341695,1768661450615,-500.0,0.00016438,3]
[402341697,1768661450625,-500.0,0.00016438,3]
[402341699,1768661450634,-587.43,0.00016438,3]
[402341701,1768661450644,-535.27896173,0.00016438,3]
[402341703,1768661450653,-500.0,0.00016438,3]
[402341705,1768661450663,-500.0,0.00016438,3]
[402341707,1768661450673,-1263.03,0.00016438,3]
[402341709,1768661450683,-516.82,0.00016438,3]
[402341711,1768661450693,-500.0,0.00016438,3]
[402341713,1768661450703,-500.0,0.00016438,3]
[402341715,1768661450716,-992.52,0.00016438,3]
[402341717,1768661450726,-500.0,0.00016438,3]
[402341719,1768661450735,-1277.69,0.00016438,3]
[402341721,1768661450746,-500.0,0.00016438,3]
[402341723,1768661450757,-503.06859357,0.00016438,3]
[402341725,1768661450767,-500.0,0.00016438,3]
[402341727,1768661450777,-500.0,0.00016438,3]
[402341729,1768661450787,-2165.22,0.00016438,3]
[402341731,1768661450799,-1522.68,0.00016438,3]
[402341733,1768661450808,-864.35,0.00016438,3]
[402341735,1768661450818,-500.0,0.00016438,3]
[402341737,1768661450829,-588.61,0.00016438,3]
[402341739,1768661450839,-300.946978,0.00016438,2]
[402341741,1768661450849,-696.22,0.00016438,3]
[402341743,1768661450859,-300.946978,0.00016438,2]
[402341745,1768661450869,-1032.73,0.00016438,3]
[402341747,1768661450878,-500.0,0.00016438,3]
[402341749,1768661450888,-500.0,0.00016438,3]
[402341751,1768661450898,-500.0,0.00016438,3]
[402341753,1768661450908,-1467.06,0.00016438,3]
[402341755,1768661450917,-300.946978,0.00016438,2]
[402341757,1768661450927,-300.946978,0.00016438,2]
[402341759,1768661450936,-500.0,0.00016438,3]
[402341761,1768661450946,-500.0,0.00016438,3]
[402341763,1768661450955,-500.0,0.00016438,3]
[402341765,1768661450965,-500.0,0.00016438,3]
[402341767,1768661450974,-500.0,0.00016438,3]
[402341769,1768661450984,-500.0,0.00016438,3]
[402341771,1768661450993,-500.0,0.00016438,3]
[402341773,1768661451003,-500.0,0.00016438,3]
[402341775,1768661451014,-500.0,0.00016438,3]
[402341777,1768661451024,-500.0,0.00016438,3]
[402341779,1768661451034,-610.68,0.00016438,3]
[402341781,1768661451044,-500.0,0.00016438,3]
[402341783,1768661451053,-1520.34,0.00016438,3]
[402341785,1768661451062,-500.0,0.00016438,3]
[402341787,1768661451072,-500.0,0.00016438,3]
[402341789,1768661451082,-500.0,0.00016438,3]
[402341791,1768661451091,-514.7,0.00016438,3]
[402341794,1768661451101,-500.0,0.00016438,3]
[402341795,1768661451111,-236.2,0.00016438,2]
[402341798,1768661451121,-1254.34,0.00016438,3]
[402341800,1768661451130,-500.0,0.00016438,3]
[402341802,1768661451140,-500.0,0.00016438,3]
[402341804,1768661451150,-500.0,0.00016438,3]
[402341806,1768661451159,-500.0,0.00016438,3]
[402341808,1768661451169,-500.0,0.00016438,3]
[402341810,1768661451179,-500.0,0.00016438,3]
[402341812,1768661451190,-500.0,0.00016438,3]
[402341813,1768661451200,-1546.36,0.00016438,3]
[402341816,1768661451213,-721.16,0.00016438,3]
[402341818,1768661451223,-172.6105479,0.00016438,3]
[402341820,1768661451234,-1352.6,0.00016438,3]
[402341821,1768661451245,-14920.45,0.00016438,3]
[402341823,1768661451255,-3641.66,0.00016438,3]
[402341826,1768661451266,-1465.51,0.00016438,3]
[402341828,1768661451276,-1082.53,0.00016438,3]
[402341830,1768661451286,-676.48,0.00016438,3]
[402341832,1768661451295,-500.0,0.00016438,3]
[402341834,1768661451305,-500.0,0.00016438,3]
[402341835,1768661451316,-500.0,0.00016438,3]
[402341838,1768661451326,-561.96,0.00016438,3]
[402341840,1768661451335,-2115.14,0.00016438,3]
[402341842,1768661451346,-500.0,0.00016438,3]
[402341844,1768661451355,-703.56,0.00016438,3]
[402341846,1768661451364,-500.0,0.00016438,3]
[402341848,1768661451374,-500.0,0.00016438,3]
[402341850,1768661451383,-1581.57,0.00016438,3]
[402341852,1768661451392,-1476.24,0.00016438,3]
[402341854,1768661451403,-1448.75,0.00016438,3]
[402341856,1768661451412,-500.0,0.00016438,3]
[402341858,1768661451422,-183.73779352,0.00016438,3]
[402341860,1768661451432,-661.85,0.00016438,3]
[402341862,1768661451441,-500.0,0.00016438,3]
[402341864,1768661451451,-1922.86,0.00016438,3]
[402341865,1768661451460,-957.46,0.00016438,3]
[402341866,1768661451471,-500.0,0.00016438,3]
[402341867,1768661451481,-500.0,0.00016438,3]
[402341868,1768661451491,-500.0,0.00016438,3]
[402341869,1768661451501,-802.37,0.00016438,3]
[402341870,1768661451512,-500.0,0.00016438,3]
[402341871,1768661451521,-500.0,0.00016438,3]
[402341872,1768661451531,-710.51,0.00016438,3]
[402341874,1768661451542,-662.64,0.00016438,3]
[402341876,1768661451553,-1152.1,0.00016438,3]
[402341878,1768661451563,-2147.02,0.00016438,3]
[402341880,1768661451572,-500.0,0.00016438,3]
[402341882,1768661451581,-500.0,0.00016438,3]
[402341884,1768661451590,-964.66,0.00016438,3]
[402341886,1768661451599,-500.0,0.00016438,3]
[402341888,1768661451609,-681.74,0.00016438,3]
[402341890,1768661451619,-1524.91,0.00016438,3]
[402341893,1768661451628,-151.0,0.00016438,2]
[402341895,1768661451638,-622.64063856,0.00016438,3]
[402341897,1768661451648,-309.96810054,0.00016438,3]
[402341899,1768661451657,-500.0,0.00016438,3]
[402341901,1768661451667,-151.0,0.00016438,2]
[402341903,1768661451677,-677.8,0.00016438,3]
[402341905,1768661451687,-500.0,0.00016438,3]
[402341907,1768661451696,-281.96847602,0.00016438,3]
[402341909,1768661451711,-500.0,0.00016438,3]
[402341911,1768661451720,-151.0,0.00016438,2]
[402341913,1768661451730,-500.0,0.00016438,3]
[402341915,1768661451740,-500.0,0.00016438,3]
[402341917,1768661451751,-500.0,0.00016438,3]
[402341919,1768661451761,-423.66716387,0.00016438,3]
[402341921,1768661451771,-500.0,0.00016438,3]
[402341923,1768661451780,-1115.78,0.00016438,3]
[402341925,1768661451791,-753.38,0.00016438,3]
[402341928,1768661451801,-500.0,0.00016438,3]
[402341929,1768661451810,-500.0,0.00016438,3]
[402341931,1768661451820,-757.17,0.00016438,3]
[402341934,1768661451831,-500.0,0.00016438,3]
[402341936,1768661451841,-500.0,0.00016438,3]
[402341938,1768661451851,-500.0,0.00016438,3]
[402341940,1768661451861,-537.73,0.00016438,3]
[402341942,1768661451871,-1800.98,0.00016438,3]
[402341971,1768661452123,-500.0,0.00016438,3]
[402341973,1768661452134,-500.0,0.00016438,3]
[402341975,1768661452143,-939.73,0.00016438,3]
[402341977,1768661452152,-952.1,0.00016438,3]
[402341979,1768661452161,-1093.56,0.00016438,3]
[402341981,1768661452170,-1386.86,0.00016438,3]
[402341983,1768661452179,-500.0,0.00016438,3]
[402341985,1768661452188,-980.85,0.00016438,3]
[402341987,1768661452198,-930.93,0.00016438,3]
[402341989,1768661452207,-594.6,0.00016438,3]
[402341991,1768661452217,-500.0,0.00016438,3]
[402341993,1768661452227,-500.0,0.00016438,3]
[402341995,1768661452236,-500.0,0.00016438,3]
[402341997,1768661452245,-500.0,0.00016438,3]
[402341999,1768661452254,-651.71,0.00016438,3]
[402342001,1768661452263,-1265.41,0.00016438,3]
[402342004,1768661452284,-1106.71,0.00016438,3]
[402342006,1768661452295,-1231.17,0.00016438,3]
[402342008,1768661452305,-500.0,0.00016438,3]
[402342011,1768661452317,-500.0,0.00016438,3]
[402342013,1768661452328,-500.0,0.00016438,3]
[402342015,1768661452338,-500.0,0.00016438,3]
[402342017,1768661452348,-500.0,0.00016438,2]
[402342019,1768661452359,-500.0,0.00016438,3]
[402342021,1768661452370,-500.0,0.00016438,3]
[402342023,1768661452380,-500.0,0.00016438,3]
[402342026,1768661452391,-1128.36,0.00016438,3]
[402342028,1768661452401,-500.0,0.00016438,3]
[402342030,1768661452411,-500.0,0.00016438,3]
[402342032,1768661452422,-590.66,0.00016438,3]
[402342034,1768661452433,-500.0,0.00016438,3]
[402342036,1768661452444,-1695.86,0.00016438,3]
[402342038,1768661452454,-500.0,0.00016438,3]
[402342041,1768661452465,-500.0,0.00016438,3]
[402342043,1768661452475,-500.0,0.00016438,3]
[402342045,1768661452485,-500.0,0.00016438,3]
[402342047,1768661452497,-500.0,0.00016438,3]
[402342049,1768661452507,-500.0,0.00016438,3]
[402342051,1768661452518,-500.0,0.00016438,3]
[402342053,1768661452528,-500.0,0.00016438,3]
[402342056,1768661452538,-500.0,0.00016438,3]
[402342058,1768661452548,-500.0,0.00016438,3]
[402342060,1768661452558,-1431.76,0.00016438,3]
[402342062,1768661452569,-500.0,0.00016438,3]
[402342064,1768661452579,-501.51,0.00016438,3]
[402342066,1768661452590,-500.0,0.00016438,3]
[402342068,1768661452600,-1746.42,0.00016438,3]
[402342070,1768661452611,-500.0,0.00016438,3]
[402342072,1768661452623,-500.0,0.00016438,3]
[402342075,1768661452632,-500.0,0.00016438,3]
[402342077,1768661452642,-500.0,0.00016438,3]
[402342079,1768661452652,-500.0,0.00016438,3]
[402342081,1768661452662,-500.0,0.00016438,3]
[402342083,1768661452671,-500.0,0.00016438,3]
[402342085,1768661452681,-362.08497691,0.00016438,3]
[402342087,1768661452690,-540.01468021,0.00016438,3]
[402342089,1768661452700,-500.0,0.00016438,3]
[402342091,1768661452713,-501.16566781,0.00016438,3]
[402342093,1768661452723,-864.9,0.00016438,3]
[402342095,1768661452733,-500.0,0.00016438,3]
[402342097,1768661452743,-1004.74,0.00016438,3]
[402342099,1768661452755,-500.0,0.00016438,3]
[402342101,1768661452765,-500.0,0.00016438,3]
[402342103,1768661452774,-2815.19,0.00016438,3]
[402342106,1768661452786,-2677.48,0.00016438,3]
[402342108,1768661452795,-500.0,0.00016438,3]
[402342110,1768661452805,-500.0,0.00016438,3]
[402342112,1768661452815,-500.0,0.00016438,3]
[402342114,1768661452825,-500.0,0.00016438,3]
[402342116,1768661452835,-500.0,0.00016438,3]
[402342118,1768661452844,-481.66318474,0.00016438,3]
[402342120,1768661452855,-500.0,0.00016438,3]
[402342122,1768661452865,-500.0,0.00016438,3]
[402342124,1768661452875,-500.0,0.00016438,3]
[402342127,1768661452884,-500.0,0.00016438,3]
[402342129,1768661452894,-500.0,0.00016438,3]
[402342130,1768661452903,-500.0,0.00016438,3]
[402342133,1768661452913,-838.53,0.00016438,3]
[402342135,1768661452922,-500.0,0.00016438,3]
[402342137,1768661452932,-500.0,0.00016438,3]